{"text_format":"3","workbook":"xlsx","n_sheets":2,"sheets":["Darbinieku grafiks","Iestatījumi"],"not_rendered":{"defined_names":21},"read":"whole","date_system":"1900"}

{"sheet":"Darbinieku grafiks","index":0,"n_rows":296,"n_cols":21,"rows_kept":296,"merged":[[6,1,6,9],[66,1,66,9],[126,1,126,9],[186,1,186,9],[246,1,246,9]]}
["Darbinieku maiņu darba grafiks"]
[]
[null,"KOPĀ:",null,{"$f":"SUM(4:4)","v":{"v":56,"d":"56.00"}}]
[null,"STUNDAS:",null,{"$f":"Darbinieka_dienas_stundu_kopskaits","v":8},{"$f":"Darbinieka_dienas_stundu_kopskaits","v":8},8,8,8,8,8,{"v":0,"d":"0.00"},{"$f":"Darbinieka_dienas_stundu_kopskaits","v":{"v":0,"d":"0.00"}},{"v":0,"d":"0.00"},{"v":0,"d":"0.00"},{"v":0,"d":"0.00"},{"v":0,"d":"0.00"},{"v":0,"d":"0.00"},{"v":0,"d":"0.00"},{"v":0,"d":"0.00"},{"v":0,"d":"0.00"},{"v":0,"d":"0.00"}]
[null,"DARBINIEKS:",null,"Goba K.","Laure Z.","Slaidiņš V.","Laure Z.","Goldberga L.","Kalniņš A.","Sirmā L."]
[]
[null,"2012-07-16T09:00:00"]
[null,{"$f":"B7","v":41106.375},{"$nulls":5},"Atvaļinājums"]
[null,{"$f":"Periodu_rādījums","v":":15"},null,"Reģistratūra",{"$nulls":3},"Atvaļinājums"]
[null,":30",null,"Reģistratūra",{"$nulls":3},"Atvaļinājums"]
[null,":45",null,"Reģistratūra","Pārraugs",null,"Klientu apkalpošana","Atvaļinājums"]
[null,"10:00",null,"Reģistratūra","Pārraugs",null,"Klientu apkalpošana","Atvaļinājums"]
[null,":15",null,"Reģistratūra","Pārraugs",null,"Klientu apkalpošana","Atvaļinājums"]
[null,":30",null,"Reģistratūra","Pārraugs",null,"Klientu apkalpošana","Atvaļinājums","Grāmatvedība"]
[null,":45",null,"Reģistratūra","Pārraugs",null,"Klientu apkalpošana","Atvaļinājums","Grāmatvedība","Šveicars"]
[null,"11:00",null,"Reģistratūra","Pārraugs",null,"Klientu apkalpošana","Atvaļinājums","Grāmatvedība","Šveicars"]
[null,":15",null,"Reģistratūra","Pārraugs","Gids","Klientu apkalpošana","Atvaļinājums","Grāmatvedība","Šveicars"]
[null,":30",null,"Reģistratūra","Pārtraukums","Gids","Klientu apkalpošana","Atvaļinājums","Grāmatvedība","Šveicars"]
[null,":45",null,"Pusdienas","Pārraugs","Gids","Klientu apkalpošana","Atvaļinājums","Grāmatvedība","Šveicars"]
[null,"12:00",null,"Pusdienas","Pārraugs","Gids","Klientu apkalpošana","Atvaļinājums","Grāmatvedība","Šveicars"]
[null,":15",null,"Reģistratūra","Pārraugs","Gids","Klientu apkalpošana","Atvaļinājums","Pārtraukums","Šveicars"]
[null,":30",null,"Reģistratūra","Pārraugs","Pārtraukums","Klientu apkalpošana","Atvaļinājums","Tālruņi","Pārtraukums"]
[null,":45",null,"Reģistratūra","Pārraugs","Gids","Klientu apkalpošana","Atvaļinājums","Tālruņi","Šveicars"]
[null,"13:00",null,"Reģistratūra","Pārraugs","Gids","Klientu apkalpošana","Atvaļinājums","Tālruņi","Šveicars"]
[null,":15",null,"Reģistratūra","Pārraugs","Gids","Pusdienas","Atvaļinājums","Tālruņi","Šveicars"]
[null,":30",null,null,"Pārraugs","Gids","Pusdienas","Atvaļinājums","Tālruņi","Šveicars"]
[null,":45",null,null,"Pārraugs","Gids","Pusdienas","Atvaļinājums","Pusdienas","Šveicars"]
[null,"14:00",null,"Kasieris","Pusdienas","Gids","Pusdienas","Atvaļinājums","Pusdienas","Šveicars"]
[null,":15",null,"Kasieris","Pusdienas","Gids","Klientu apkalpošana","Atvaļinājums","Tālruņi","Šveicars"]
[null,":30",null,"Kasieris","Pusdienas","Pusdienas","Klientu apkalpošana","Atvaļinājums","Tālruņi","Pusdienas"]
[null,":45",null,"Kasieris","Pusdienas","Pusdienas","Klientu apkalpošana","Atvaļinājums","Tālruņi","Pusdienas"]
[null,"15:00",null,"Kasieris","Drošība","Pusdienas","Klientu apkalpošana","Atvaļinājums","Tālruņi","Pusdienas"]
[null,":15",null,"Kasieris","Drošība","Pusdienas","Klientu apkalpošana","Atvaļinājums","Tālruņi","Pusdienas"]
[null,":30",null,"Kasieris","Drošība","Gids","Klientu apkalpošana","Atvaļinājums","Tālruņi","Slēgts"]
[null,":45",null,"Kasieris","Drošība","Gids","Klientu apkalpošana","Atvaļinājums","Tālruņi","Slēgts"]
[null,"16:00",null,"Kasieris","Drošība","Gids","Klientu apkalpošana","Atvaļinājums","Pārtraukums","Slēgts"]
[null,":15",null,"Pārtraukums","Drošība","Gids","Pārtraukums","Atvaļinājums","Tālruņi","Slēgts"]
[null,":30",null,"Kasieris","Drošība","Gids","Klientu apkalpošana","Atvaļinājums","Tālruņi","Slēgts"]
[null,":45",null,"Kasieris","Drošība","Gids","Klientu apkalpošana","Atvaļinājums","Tālruņi","Slēgts"]
[null,"17:00",null,"Kasieris","Drošība","Gids","Klientu apkalpošana",null,"Tālruņi","Slēgts"]
[null,":15",null,"Kasieris","Drošība","Gids","Klientu apkalpošana",null,"Tālruņi","Slēgts"]
[null,":30",null,"Kasieris","Drošība","Gids","Klientu apkalpošana",null,"Tālruņi","Slēgts"]
[null,":45",null,"Kasieris","Drošība","Gids","Klientu apkalpošana",null,"Tālruņi","Slēgts"]
[null,"18:00",null,"Kasieris","Drošība","Gids","Klientu apkalpošana",null,"Tālruņi","Slēgts"]
[null,":15",null,"Kasieris","Drošība","Gids","Klientu apkalpošana",null,"Tālruņi","Slēgts"]
[null,":30",null,null,"Drošība","Gids","Klientu apkalpošana",null,"Tālruņi","Slēgts"]
[null,":45",null,null,"Drošība","Pārtraukums","Klientu apkalpošana",null,"Tālruņi","Pārtraukums"]
[null,"19:00",{"$nulls":3},"Gids",null,null,"Tālruņi","Slēgts"]
[null,":15",{"$nulls":3},"Gids",null,null,"Tālruņi","Slēgts"]
[null,":30",{"$nulls":3},"Gids",{"$nulls":3},"Slēgts"]
[null,":45",{"$nulls":3},"Gids",{"$nulls":3},"Slēgts"]
[null,"20:00",{"$nulls":3},"Gids",{"$nulls":3},"Slēgts"]
[null,":15",{"$nulls":3},"Gids"]
[null,":30",{"$nulls":3},"Gids"]
[null,":45"]
[null,"21:00"]
[]
[]
[]
[]
["Darbinieku grafiks"]
[]
[null,"KOPĀ:",null,{"$f":"SUM(64:64)","v":{"v":56,"d":"56.00"}}]
[null,"STUNDAS:",null,{"$f":"Darbinieka_dienas_stundu_kopskaits","v":8},8,8,8,8,8,8,{"v":0,"d":"0.00"},{"v":0,"d":"0.00"},{"v":0,"d":"0.00"},{"v":0,"d":"0.00"},{"v":0,"d":"0.00"},{"v":0,"d":"0.00"},{"v":0,"d":"0.00"},{"v":0,"d":"0.00"},{"v":0,"d":"0.00"},{"v":0,"d":"0.00"},{"v":0,"d":"0.00"}]
[null,"DARBINIEKS:",null,"Goba K.","Laure Z.","Slaidiņš V.","Poriete I.","Goldberga L.","Kalniņš A.","Sirmā L."]
[]
[null,{"$f":"B7+1","v":"2012-07-17T09:00:00"}]
[null,{"$f":"B67","v":41107.375},{"$nulls":5},"Atvaļinājums"]
[null,{"$f":"Periodu_rādījums","v":":15"},null,"Reģistratūra",{"$nulls":3},"Atvaļinājums"]
[null,":30",null,"Reģistratūra",{"$nulls":3},"Atvaļinājums"]
[null,":45",null,"Reģistratūra","Pārraugs",null,"Klientu apkalpošana","Atvaļinājums"]
[null,"1:00",null,"Reģistratūra","Pārraugs",null,"Klientu apkalpošana","Atvaļinājums"]
[null,":15",null,"Reģistratūra","Pārraugs",null,"Klientu apkalpošana","Atvaļinājums"]
[null,":30",null,"Reģistratūra","Pārraugs",null,"Klientu apkalpošana","Atvaļinājums","Grāmatvedība"]
[null,":45",null,"Reģistratūra","Pārraugs",null,"Klientu apkalpošana","Atvaļinājums","Grāmatvedība","Šveicars"]
[null,"2:00",null,"Reģistratūra","Pārraugs",null,"Klientu apkalpošana","Atvaļinājums","Grāmatvedība","Šveicars"]
[null,":15",null,"Reģistratūra","Pārraugs","Gids","Klientu apkalpošana","Atvaļinājums","Grāmatvedība","Šveicars"]
[null,":30",null,"Reģistratūra","Pārtraukums","Gids","Klientu apkalpošana","Atvaļinājums","Grāmatvedība","Šveicars"]
[null,":45",null,"Pusdienas","Pārraugs","Gids","Klientu apkalpošana","Atvaļinājums","Grāmatvedība","Šveicars"]
[null,"3:00",null,"Pusdienas","Pārraugs","Gids","Klientu apkalpošana","Atvaļinājums","Grāmatvedība","Šveicars"]
[null,":15",null,"Reģistratūra","Pārraugs","Gids","Klientu apkalpošana","Atvaļinājums","Pārtraukums","Šveicars"]
[null,":30",null,"Reģistratūra","Pārraugs","Pārtraukums","Klientu apkalpošana","Atvaļinājums","Tālruņi","Pārtraukums"]
[null,":45",null,"Reģistratūra","Pārraugs","Gids","Klientu apkalpošana","Atvaļinājums","Tālruņi","Šveicars"]
[null,"4:00",null,"Reģistratūra","Pārraugs","Gids","Klientu apkalpošana","Atvaļinājums","Tālruņi","Šveicars"]
[null,":15",null,"Reģistratūra","Pārraugs","Gids","Pusdienas","Atvaļinājums","Tālruņi","Šveicars"]
[null,":30",null,null,"Pārraugs","Gids","Pusdienas","Atvaļinājums","Tālruņi","Šveicars"]
[null,":45",null,null,"Pārraugs","Gids","Pusdienas","Atvaļinājums","Pusdienas","Šveicars"]
[null,"5:00",null,"Kasieris","Pusdienas","Gids","Pusdienas","Atvaļinājums","Pusdienas","Šveicars"]
[null,":15",null,"Kasieris","Pusdienas","Gids","Klientu apkalpošana","Atvaļinājums","Tālruņi","Šveicars"]
[null,":30",null,"Kasieris","Pusdienas","Pusdienas","Klientu apkalpošana","Atvaļinājums","Tālruņi","Pusdienas"]
[null,":45",null,"Kasieris","Pusdienas","Pusdienas","Klientu apkalpošana","Atvaļinājums","Tālruņi","Pusdienas"]
[null,"6:00",null,"Kasieris","Drošība","Pusdienas","Klientu apkalpošana","Atvaļinājums","Tālruņi","Pusdienas"]
[null,":15",null,"Kasieris","Drošība","Pusdienas","Klientu apkalpošana","Atvaļinājums","Tālruņi","Pusdienas"]
[null,":30",null,"Kasieris","Drošība","Gids","Klientu apkalpošana","Atvaļinājums","Tālruņi","Slēgts"]
[null,":45",null,"Kasieris","Drošība","Gids","Klientu apkalpošana","Atvaļinājums","Tālruņi","Slēgts"]
[null,"7:00",null,"Kasieris","Drošība","Gids","Klientu apkalpošana","Atvaļinājums","Pārtraukums","Slēgts"]
[null,":15",null,"Pārtraukums","Drošība","Gids","Pārtraukums","Atvaļinājums","Tālruņi","Slēgts"]
[null,":30",null,"Kasieris","Drošība","Gids","Klientu apkalpošana","Atvaļinājums","Tālruņi","Slēgts"]
[null,":45",null,"Kasieris","Drošība","Gids","Klientu apkalpošana","Atvaļinājums","Tālruņi","Slēgts"]
[null,"8:00",null,"Kasieris","Drošība","Gids","Klientu apkalpošana",null,"Tālruņi","Slēgts"]
[null,":15",null,"Kasieris","Drošība","Gids","Klientu apkalpošana",null,"Tālruņi","Slēgts"]
[null,":30",null,"Kasieris","Drošība","Gids","Klientu apkalpošana",null,"Tālruņi","Slēgts"]
[null,":45",null,"Kasieris","Drošība","Gids","Klientu apkalpošana",null,"Tālruņi","Slēgts"]
[null,"9:00",null,"Kasieris","Drošība","Gids","Klientu apkalpošana",null,"Tālruņi","Slēgts"]
[null,":15",null,"Kasieris","Drošība","Gids","Klientu apkalpošana",null,"Tālruņi","Slēgts"]
[null,":30",null,null,"Drošība","Gids","Klientu apkalpošana",null,"Tālruņi","Slēgts"]
[null,":45",null,null,"Drošība","Pārtraukums","Klientu apkalpošana",null,"Tālruņi","Pārtraukums"]
[null,"10:00",{"$nulls":3},"Gids",null,null,"Tālruņi","Slēgts"]
[null,":15",{"$nulls":3},"Gids",null,null,"Tālruņi","Slēgts"]
[null,":30",{"$nulls":3},"Gids",{"$nulls":3},"Slēgts"]
[null,":45",{"$nulls":3},"Gids",{"$nulls":3},"Slēgts"]
[null,"11:00",{"$nulls":3},"Gids",{"$nulls":3},"Slēgts"]
[null,":15",{"$nulls":3},"Gids"]
[null,":30",{"$nulls":3},"Gids"]
[null,":45"]
[null,"12:00"]
[]
[]
[]
[]
["Darbinieku grafiks"]
[]
[null,"KOPĀ:",null,{"$f":"SUM(124:124)","v":{"v":56,"d":"56.00"}}]
[null,"STUNDAS:",null,{"$f":"Darbinieka_dienas_stundu_kopskaits","v":8},8,8,8,8,8,8,{"v":0,"d":"0.00"},{"v":0,"d":"0.00"},{"v":0,"d":"0.00"},{"v":0,"d":"0.00"},{"v":0,"d":"0.00"},{"v":0,"d":"0.00"},{"v":0,"d":"0.00"},{"v":0,"d":"0.00"},{"v":0,"d":"0.00"},{"v":0,"d":"0.00"},{"v":0,"d":"0.00"}]
[null,"DARBINIEKS:",null,"Goba K.","Laure Z.","Slaidiņš V.","Poriete I.","Goldberga L.","Kalniņš A.","Sirmā L."]
[]
[null,{"$f":"B67+1","v":"2012-07-18T09:00:00"}]
[null,{"$f":"B127","v":41108.375},{"$nulls":5},"Atvaļinājums"]
[null,{"$f":"Periodu_rādījums","v":":15"},null,"Reģistratūra",{"$nulls":3},"Atvaļinājums"]
[null,":30",null,"Reģistratūra",{"$nulls":3},"Atvaļinājums"]
[null,":45",null,"Reģistratūra","Pārraugs",null,"Klientu apkalpošana","Atvaļinājums"]
[null,"16:00",null,"Reģistratūra","Pārraugs",null,"Klientu apkalpošana","Atvaļinājums"]
[null,":15",null,"Reģistratūra","Pārraugs",null,"Klientu apkalpošana","Atvaļinājums"]
[null,":30",null,"Reģistratūra","Pārraugs",null,"Klientu apkalpošana","Atvaļinājums","Grāmatvedība"]
[null,":45",null,"Reģistratūra","Pārraugs",null,"Klientu apkalpošana","Atvaļinājums","Grāmatvedība","Šveicars"]
[null,"17:00",null,"Reģistratūra","Pārraugs",null,"Klientu apkalpošana","Atvaļinājums","Grāmatvedība","Šveicars"]
[null,":15",null,"Reģistratūra","Pārraugs","Gids","Klientu apkalpošana","Atvaļinājums","Grāmatvedība","Šveicars"]
[null,":30",null,"Reģistratūra","Pārtraukums","Gids","Klientu apkalpošana","Atvaļinājums","Grāmatvedība","Šveicars"]
[null,":45",null,"Pusdienas","Pārraugs","Gids","Klientu apkalpošana","Atvaļinājums","Grāmatvedība","Šveicars"]
[null,"18:00",null,"Pusdienas","Pārraugs","Gids","Klientu apkalpošana","Atvaļinājums","Grāmatvedība","Šveicars"]
[null,":15",null,"Reģistratūra","Pārraugs","Gids","Klientu apkalpošana","Atvaļinājums","Pārtraukums","Šveicars"]
[null,":30",null,"Reģistratūra","Pārraugs","Pārtraukums","Klientu apkalpošana","Atvaļinājums","Tālruņi","Pārtraukums"]
[null,":45",null,"Reģistratūra","Pārraugs","Gids","Klientu apkalpošana","Atvaļinājums","Tālruņi","Šveicars"]
[null,"19:00",null,"Reģistratūra","Pārraugs","Gids","Klientu apkalpošana","Atvaļinājums","Tālruņi","Šveicars"]
[null,":15",null,"Reģistratūra","Pārraugs","Gids","Pusdienas","Atvaļinājums","Tālruņi","Šveicars"]
[null,":30",null,null,"Pārraugs","Gids","Pusdienas","Atvaļinājums","Tālruņi","Šveicars"]
[null,":45",null,null,"Pārraugs","Gids","Pusdienas","Atvaļinājums","Pusdienas","Šveicars"]
[null,"20:00",null,"Kasieris","Pusdienas","Gids","Pusdienas","Atvaļinājums","Pusdienas","Šveicars"]
[null,":15",null,"Kasieris","Pusdienas","Gids","Klientu apkalpošana","Atvaļinājums","Tālruņi","Šveicars"]
[null,":30",null,"Kasieris","Pusdienas","Pusdienas","Klientu apkalpošana","Atvaļinājums","Tālruņi","Pusdienas"]
[null,":45",null,"Kasieris","Pusdienas","Pusdienas","Klientu apkalpošana","Atvaļinājums","Tālruņi","Pusdienas"]
[null,"21:00",null,"Kasieris","Drošība","Pusdienas","Klientu apkalpošana","Atvaļinājums","Tālruņi","Pusdienas"]
[null,":15",null,"Kasieris","Drošība","Pusdienas","Klientu apkalpošana","Atvaļinājums","Tālruņi","Pusdienas"]
[null,":30",null,"Kasieris","Drošība","Gids","Klientu apkalpošana","Atvaļinājums","Tālruņi","Slēgts"]
[null,":45",null,"Kasieris","Drošība","Gids","Klientu apkalpošana","Atvaļinājums","Tālruņi","Slēgts"]
[null,"22:00",null,"Kasieris","Drošība","Gids","Klientu apkalpošana","Atvaļinājums","Pārtraukums","Slēgts"]
[null,":15",null,"Pārtraukums","Drošība","Gids","Pārtraukums","Atvaļinājums","Tālruņi","Slēgts"]
[null,":30",null,"Kasieris","Drošība","Gids","Klientu apkalpošana","Atvaļinājums","Tālruņi","Slēgts"]
[null,":45",null,"Kasieris","Drošība","Gids","Klientu apkalpošana","Atvaļinājums","Tālruņi","Slēgts"]
[null,"23:00",null,"Kasieris","Drošība","Gids","Klientu apkalpošana",null,"Tālruņi","Slēgts"]
[null,":15",null,"Kasieris","Drošība","Gids","Klientu apkalpošana",null,"Tālruņi","Slēgts"]
[null,":30",null,"Kasieris","Drošība","Gids","Klientu apkalpošana",null,"Tālruņi","Slēgts"]
[null,":45",null,"Kasieris","Drošība","Gids","Klientu apkalpošana",null,"Tālruņi","Slēgts"]
[null,"0:00",null,"Kasieris","Drošība","Gids","Klientu apkalpošana",null,"Tālruņi","Slēgts"]
[null,":15",null,"Kasieris","Drošība","Gids","Klientu apkalpošana",null,"Tālruņi","Slēgts"]
[null,":30",null,null,"Drošība","Gids","Klientu apkalpošana",null,"Tālruņi","Slēgts"]
[null,":45",null,null,"Drošība","Pārtraukums","Klientu apkalpošana",null,"Tālruņi","Pārtraukums"]
[null,"1:00",{"$nulls":3},"Gids",null,null,"Tālruņi","Slēgts"]
[null,":15",{"$nulls":3},"Gids",null,null,"Tālruņi","Slēgts"]
[null,":30",{"$nulls":3},"Gids",{"$nulls":3},"Slēgts"]
[null,":45",{"$nulls":3},"Gids",{"$nulls":3},"Slēgts"]
[null,"2:00",{"$nulls":3},"Gids",{"$nulls":3},"Slēgts"]
[null,":15",{"$nulls":3},"Gids"]
[null,":30",{"$nulls":3},"Gids"]
[null,":45"]
[null,"3:00"]
[]
[]
[]
[]
["Darbinieku grafiks"]
[]
[null,"KOPĀ:",null,{"$f":"SUM(184:184)","v":{"v":56,"d":"56.00"}}]
[null,"STUNDAS:",null,{"$f":"Darbinieka_dienas_stundu_kopskaits","v":8},8,8,8,8,8,8,{"v":0,"d":"0.00"},{"v":0,"d":"0.00"},{"v":0,"d":"0.00"},{"v":0,"d":"0.00"},{"v":0,"d":"0.00"},{"v":0,"d":"0.00"},{"v":0,"d":"0.00"},{"v":0,"d":"0.00"},{"v":0,"d":"0.00"},{"v":0,"d":"0.00"},{"v":0,"d":"0.00"}]
[null,"DARBINIEKS:",null,"Goba K.","Laure Z.","Slaidiņš V.","Poriete I.","Goldberga L.","Kalniņš A.","Sirmā L."]
[]
[null,{"$f":"B127+1","v":"2012-07-19T09:00:00"}]
[null,{"$f":"B187","v":41109.375},{"$nulls":5},"Atvaļinājums"]
[null,{"$f":"Periodu_rādījums","v":":15"},null,"Reģistratūra",{"$nulls":3},"Atvaļinājums"]
[null,":30",null,"Reģistratūra",{"$nulls":3},"Atvaļinājums"]
[null,":45",null,"Reģistratūra","Pārraugs",null,"Klientu apkalpošana","Atvaļinājums"]
[null,"7:00",null,"Reģistratūra","Pārraugs",null,"Klientu apkalpošana","Atvaļinājums"]
[null,":15",null,"Reģistratūra","Pārraugs",null,"Klientu apkalpošana","Atvaļinājums"]
[null,":30",null,"Reģistratūra","Pārraugs",null,"Klientu apkalpošana","Atvaļinājums","Grāmatvedība"]
[null,":45",null,"Reģistratūra","Pārraugs",null,"Klientu apkalpošana","Atvaļinājums","Grāmatvedība","Šveicars"]
[null,"8:00",null,"Reģistratūra","Pārraugs",null,"Klientu apkalpošana","Atvaļinājums","Grāmatvedība","Šveicars"]
[null,":15",null,"Reģistratūra","Pārraugs","Gids","Klientu apkalpošana","Atvaļinājums","Grāmatvedība","Šveicars"]
[null,":30",null,"Reģistratūra","Pārtraukums","Gids","Klientu apkalpošana","Atvaļinājums","Grāmatvedība","Šveicars"]
[null,":45",null,"Pusdienas","Pārraugs","Gids","Klientu apkalpošana","Atvaļinājums","Grāmatvedība","Šveicars"]
[null,"9:00",null,"Pusdienas","Pārraugs","Gids","Klientu apkalpošana","Atvaļinājums","Grāmatvedība","Šveicars"]
[null,":15",null,"Reģistratūra","Pārraugs","Gids","Klientu apkalpošana","Atvaļinājums","Pārtraukums","Šveicars"]
[null,":30",null,"Reģistratūra","Pārraugs","Pārtraukums","Klientu apkalpošana","Atvaļinājums","Tālruņi","Pārtraukums"]
[null,":45",null,"Reģistratūra","Pārraugs","Gids","Klientu apkalpošana","Atvaļinājums","Tālruņi","Šveicars"]
[null,"10:00",null,"Reģistratūra","Pārraugs","Gids","Klientu apkalpošana","Atvaļinājums","Tālruņi","Šveicars"]
[null,":15",null,"Reģistratūra","Pārraugs","Gids","Pusdienas","Atvaļinājums","Tālruņi","Šveicars"]
[null,":30",null,null,"Pārraugs","Gids","Pusdienas","Atvaļinājums","Tālruņi","Šveicars"]
[null,":45",null,null,"Pārraugs","Gids","Pusdienas","Atvaļinājums","Pusdienas","Šveicars"]
[null,"11:00",null,"Kasieris","Pusdienas","Gids","Pusdienas","Atvaļinājums","Pusdienas","Šveicars"]
[null,":15",null,"Kasieris","Pusdienas","Gids","Klientu apkalpošana","Atvaļinājums","Tālruņi","Šveicars"]
[null,":30",null,"Kasieris","Pusdienas","Pusdienas","Klientu apkalpošana","Atvaļinājums","Tālruņi","Pusdienas"]
[null,":45",null,"Kasieris","Pusdienas","Pusdienas","Klientu apkalpošana","Atvaļinājums","Tālruņi","Pusdienas"]
[null,"12:00",null,"Kasieris","Drošība","Pusdienas","Klientu apkalpošana","Atvaļinājums","Tālruņi","Pusdienas"]
[null,":15",null,"Kasieris","Drošība","Pusdienas","Klientu apkalpošana","Atvaļinājums","Tālruņi","Pusdienas"]
[null,":30",null,"Kasieris","Drošība","Gids","Klientu apkalpošana","Atvaļinājums","Tālruņi","Slēgts"]
[null,":45",null,"Kasieris","Drošība","Gids","Klientu apkalpošana","Atvaļinājums","Tālruņi","Slēgts"]
[null,"13:00",null,"Kasieris","Drošība","Gids","Klientu apkalpošana","Atvaļinājums","Pārtraukums","Slēgts"]
[null,":15",null,"Pārtraukums","Drošība","Gids","Pārtraukums","Atvaļinājums","Tālruņi","Slēgts"]
[null,":30",null,"Kasieris","Drošība","Gids","Klientu apkalpošana","Atvaļinājums","Tālruņi","Slēgts"]
[null,":45",null,"Kasieris","Drošība","Gids","Klientu apkalpošana","Atvaļinājums","Tālruņi","Slēgts"]
[null,"14:00",null,"Kasieris","Drošība","Gids","Klientu apkalpošana",null,"Tālruņi","Slēgts"]
[null,":15",null,"Kasieris","Drošība","Gids","Klientu apkalpošana",null,"Tālruņi","Slēgts"]
[null,":30",null,"Kasieris","Drošība","Gids","Klientu apkalpošana",null,"Tālruņi","Slēgts"]
[null,":45",null,"Kasieris","Drošība","Gids","Klientu apkalpošana",null,"Tālruņi","Slēgts"]
[null,"15:00",null,"Kasieris","Drošība","Gids","Klientu apkalpošana",null,"Tālruņi","Slēgts"]
[null,":15",null,"Kasieris","Drošība","Gids","Klientu apkalpošana",null,"Tālruņi","Slēgts"]
[null,":30",null,null,"Drošība","Gids","Klientu apkalpošana",null,"Tālruņi","Slēgts"]
[null,":45",null,null,"Drošība","Pārtraukums","Klientu apkalpošana",null,"Tālruņi","Pārtraukums"]
[null,"16:00",{"$nulls":3},"Gids",null,null,"Tālruņi","Slēgts"]
[null,":15",{"$nulls":3},"Gids",null,null,"Tālruņi","Slēgts"]
[null,":30",{"$nulls":3},"Gids",{"$nulls":3},"Slēgts"]
[null,":45",{"$nulls":3},"Gids",{"$nulls":3},"Slēgts"]
[null,"17:00",{"$nulls":3},"Gids",{"$nulls":3},"Slēgts"]
[null,":15",{"$nulls":3},"Gids"]
[null,":30",{"$nulls":3},"Gids"]
[null,":45"]
[null,"18:00"]
[]
[]
[]
[]
["Darbinieku grafiks"]
[]
[null,"KOPĀ:",null,{"$f":"SUM(244:244)","v":{"v":56,"d":"56.00"}}]
[null,"STUNDAS:",null,{"$f":"Darbinieka_dienas_stundu_kopskaits","v":8},8,8,8,8,8,8,{"v":0,"d":"0.00"},{"v":0,"d":"0.00"},{"v":0,"d":"0.00"},{"v":0,"d":"0.00"},{"v":0,"d":"0.00"},{"v":0,"d":"0.00"},{"v":0,"d":"0.00"},{"v":0,"d":"0.00"},{"v":0,"d":"0.00"},{"v":0,"d":"0.00"},{"v":0,"d":"0.00"}]
[null,"DARBINIEKS:",null,"Goba K.","Laure Z.","Slaidiņš V.","Poriete I.","Goldberga L.","Kalniņš A.","Sirmā L."]
[]
[null,{"$f":"B187+1","v":"2012-07-20T09:00:00"}]
[null,{"$f":"B247","v":41110.375},{"$nulls":5},"Atvaļinājums"]
[null,{"$f":"Periodu_rādījums","v":":15"},null,"Reģistratūra",{"$nulls":3},"Atvaļinājums"]
[null,":30",null,"Reģistratūra",{"$nulls":3},"Atvaļinājums"]
[null,":45",null,"Reģistratūra","Pārraugs",null,"Klientu apkalpošana","Atvaļinājums"]
[null,"22:00",null,"Reģistratūra","Pārraugs",null,"Klientu apkalpošana","Atvaļinājums"]
[null,":15",null,"Reģistratūra","Pārraugs",null,"Klientu apkalpošana","Atvaļinājums"]
[null,":30",null,"Reģistratūra","Pārraugs",null,"Klientu apkalpošana","Atvaļinājums","Grāmatvedība"]
[null,":45",null,"Reģistratūra","Pārraugs",null,"Klientu apkalpošana","Atvaļinājums","Grāmatvedība","Šveicars"]
[null,"23:00",null,"Reģistratūra","Pārraugs",null,"Klientu apkalpošana","Atvaļinājums","Grāmatvedība","Šveicars"]
[null,":15",null,"Reģistratūra","Pārraugs","Gids","Klientu apkalpošana","Atvaļinājums","Grāmatvedība","Šveicars"]
[null,":30",null,"Reģistratūra","Pārtraukums","Gids","Klientu apkalpošana","Atvaļinājums","Grāmatvedība","Šveicars"]
[null,":45",null,"Pusdienas","Pārraugs","Gids","Klientu apkalpošana","Atvaļinājums","Grāmatvedība","Šveicars"]
[null,"0:00",null,"Pusdienas","Pārraugs","Gids","Klientu apkalpošana","Atvaļinājums","Grāmatvedība","Šveicars"]
[null,":15",null,"Reģistratūra","Pārraugs","Gids","Klientu apkalpošana","Atvaļinājums","Pārtraukums","Šveicars"]
[null,":30",null,"Reģistratūra","Pārraugs","Pārtraukums","Klientu apkalpošana","Atvaļinājums","Tālruņi","Pārtraukums"]
[null,":45",null,"Reģistratūra","Pārraugs","Gids","Klientu apkalpošana","Atvaļinājums","Tālruņi","Šveicars"]
[null,"1:00",null,"Reģistratūra","Pārraugs","Gids","Klientu apkalpošana","Atvaļinājums","Tālruņi","Šveicars"]
[null,":15",null,"Reģistratūra","Pārraugs","Gids","Pusdienas","Atvaļinājums","Tālruņi","Šveicars"]
[null,":30",null,null,"Pārraugs","Gids","Pusdienas","Atvaļinājums","Tālruņi","Šveicars"]
[null,":45",null,null,"Pārraugs","Gids","Pusdienas","Atvaļinājums","Pusdienas","Šveicars"]
[null,"2:00",null,"Kasieris","Pusdienas","Gids","Pusdienas","Atvaļinājums","Pusdienas","Šveicars"]
[null,":15",null,"Kasieris","Pusdienas","Gids","Klientu apkalpošana","Atvaļinājums","Tālruņi","Šveicars"]
[null,":30",null,"Kasieris","Pusdienas","Pusdienas","Klientu apkalpošana","Atvaļinājums","Tālruņi","Pusdienas"]
[null,":45",null,"Kasieris","Pusdienas","Pusdienas","Klientu apkalpošana","Atvaļinājums","Tālruņi","Pusdienas"]
[null,"3:00",null,"Kasieris","Drošība","Pusdienas","Klientu apkalpošana","Atvaļinājums","Tālruņi","Pusdienas"]
[null,":15",null,"Kasieris","Drošība","Pusdienas","Klientu apkalpošana","Atvaļinājums","Tālruņi","Pusdienas"]
[null,":30",null,"Kasieris","Drošība","Gids","Klientu apkalpošana","Atvaļinājums","Tālruņi","Slēgts"]
[null,":45",null,"Kasieris","Drošība","Gids","Klientu apkalpošana","Atvaļinājums","Tālruņi","Slēgts"]
[null,"4:00",null,"Kasieris","Drošība","Gids","Klientu apkalpošana","Atvaļinājums","Pārtraukums","Slēgts"]
[null,":15",null,"Pārtraukums","Drošība","Gids","Pārtraukums","Atvaļinājums","Tālruņi","Slēgts"]
[null,":30",null,"Kasieris","Drošība","Gids","Klientu apkalpošana","Atvaļinājums","Tālruņi","Slēgts"]
[null,":45",null,"Kasieris","Drošība","Gids","Klientu apkalpošana","Atvaļinājums","Tālruņi","Slēgts"]
[null,"5:00",null,"Kasieris","Drošība","Gids","Klientu apkalpošana",null,"Tālruņi","Slēgts"]
[null,":15",null,"Kasieris","Drošība","Gids","Klientu apkalpošana",null,"Tālruņi","Slēgts"]
[null,":30",null,"Kasieris","Drošība","Gids","Klientu apkalpošana",null,"Tālruņi","Slēgts"]
[null,":45",null,"Kasieris","Drošība","Gids","Klientu apkalpošana",null,"Tālruņi","Slēgts"]
[null,"6:00",null,"Kasieris","Drošība","Gids","Klientu apkalpošana",null,"Tālruņi","Slēgts"]
[null,":15",null,"Kasieris","Drošība","Gids","Klientu apkalpošana",null,"Tālruņi","Slēgts"]
[null,":30",null,null,"Drošība","Gids","Klientu apkalpošana",null,"Tālruņi","Slēgts"]
[null,":45",null,null,"Drošība","Pārtraukums","Klientu apkalpošana",null,"Tālruņi","Pārtraukums"]
[null,"7:00",{"$nulls":3},"Gids",null,null,"Tālruņi","Slēgts"]
[null,":15",{"$nulls":3},"Gids",null,null,"Tālruņi","Slēgts"]
[null,":30",{"$nulls":3},"Gids",{"$nulls":3},"Slēgts"]
[null,":45",{"$nulls":3},"Gids",{"$nulls":3},"Slēgts"]
[null,"8:00",{"$nulls":3},"Gids",{"$nulls":3},"Slēgts"]
[null,":15",{"$nulls":3},"Gids"]
[null,":30",{"$nulls":3},"Gids"]
[null,":45"]
[null,"9:00"]

{"sheet":"Iestatījumi","index":1,"n_rows":26,"n_cols":7,"rows_kept":26}
[null,"Iestatījumi"]
[]
[]
[null,"SOĻU SKAITS\nSTUNDĀ",4]
[]
[]
[]
[]
[]
[null,"Darbinieki",null,"Amats/prombūtne","Krāsa","Samaksāts","Visa diena"]
[null,"Goba K.",null,"Pusdienas",1,false,false]
[null,"Goldberga L.",null,"Pārtraukums",1,false,false]
[null,"Kalniņš A.",null,"Brīvdiena",1,false,true]
[null,"Ploce V.",null,"Slims",1,false,true]
[null,"Laure Z.",null,"Privātas darīšanas",1,true,true]
[null,"Poriete I.",null,"Atvaļinājums",1,true,true]
[null,"Sirmā L.",null,"Reģistratūra",2,true,false]
[null,"Slaidiņš V.",null,"Kasieris",3,true,false]
[{"$nulls":3},"Pārraugs",4,true,false]
[{"$nulls":3},"Gids",5,true,false]
[{"$nulls":3},"Klientu apkalpošana",6,true,false]
[{"$nulls":3},"Tālruņi",7,true,false]
[{"$nulls":3},"Drošība",8,true,false]
[{"$nulls":3},"Šveicars",9,true,false]
[{"$nulls":3},"Grāmatvedība",10,true,false]
[{"$nulls":3},"Slēgts",11,true,false]